bitfinex-derivatives/quotes_SOLF0:USTF0_20251018
["timestamp","ask_amount","ask_price","bid_price","bid_amount"]
[1760829356781,7.1835398,187.43,187.37,2.6]
[1760829356988,3.2188655,187.45,187.34,10.6215655]
[1760829357182,2.69,187.43,187.34,10.6215655]
[1760829357483,2.69,187.42,187.34,10.6215655]
[1760829358078,7.4908,187.42,187.34,10.6215655]
[1760829358275,11.4490283,187.42,187.34,10.6215655]
[1760829358475,2.69,187.41,187.34,10.6215655]
[1760829358680,2.69,187.41,187.34,7.4027]
[1760829358987,2.69,187.4,187.34,7.4027]
[1760829360479,13.23744989,187.42,187.35,2.6]
[1760829360684,9.28617373,187.42,187.35,2.6]
[1760829360985,4.8008,187.42,187.35,2.6]
[1760829361585,9.28617373,187.42,187.35,2.6]
[1760829361785,4.8008,187.42,187.35,2.6]
[1760829363081,2.69,187.41,187.35,2.6]
[1760829370891,7.4911,187.41,187.35,2.6]
[1760829385203,7.4614,187.4,187.32,2.63]
[1760829385396,2.66,187.4,187.32,2.63]
[1760829385791,4.8016,187.39,187.32,2.63]
[1760829385997,2.66,187.38,187.32,2.63]
[1760829386503,2.66,187.41,187.33,2.63]
[1760829388099,2.66,187.41,187.35,2.63]
[1760829392297,2.66,187.4,187.32,10.6519655]
[1760829392501,2.66,187.42,187.33,2.63]
[1760829392701,6.62719174,187.42,187.33,2.63]
[1760829392907,2.66,187.42,187.33,2.63]
[1760829393105,6.62719174,187.42,187.33,2.63]
[1760829393300,2.66,187.42,187.33,2.63]
[1760829393501,6.62719174,187.42,187.33,2.63]
[1760829393701,2.66,187.42,187.33,2.63]
[1760829393898,6.62719174,187.42,187.33,2.63]
[1760829394104,7.4608,187.42,187.33,2.63]
[1760829394301,2.66,187.4,187.33,2.63]
[1760829395306,6.62719174,187.4,187.33,2.63]
[1760829395508,2.66,187.4,187.33,2.63]
[1760829396405,6.62719174,187.4,187.33,2.63]
[1760829396703,10.60642904,187.4,187.33,2.63]
[1760829396904,6.62719174,187.4,187.33,2.63]
[1760829397310,3.96719174,187.39,187.33,2.63]
[1760829397508,3.96719174,187.39,187.32,4.8031]
[1760829397810,2.66,187.38,187.32,7.4331]
[1760829400405,6.64669656,187.38,187.32,7.4331]
[1760829400608,2.66,187.38,187.32,7.4331]
[1760829400811,6.64669656,187.38,187.32,7.4331]
[1760829401011,2.66,187.38,187.32,7.4331]
[1760829401207,6.64669656,187.38,187.32,7.4331]
[1760829401415,2.66,187.38,187.32,7.4331]
[1760829401615,6.64669656,187.38,187.32,7.4331]
[1760829402212,4.8025,187.35,187.29,2.63]
[1760829402517,2.66,187.33,187.27,2.63]
[1760829404112,2.66,187.33,187.27,4.8045]
[1760829404318,2.66,187.34,187.28,2.63]
[1760829415835,7.977529,187.37,187.28,2.63]
[1760829415836,6.66242407,187.37,187.29,2.81]
[1760829416130,2.68,187.37,187.29,2.81]
[1760829416434,6.66242407,187.37,187.29,2.81]
[1760829416634,6.66242407,187.37,187.3,2.81]
[1760829416834,2.68,187.37,187.3,2.81]
[1760829422839,6.66242407,187.37,187.3,2.81]
[1760829423434,2.68,187.35,187.27,7.6145]
[1760829423841,2.68,187.35,187.27,4.8045]
[1760829424041,2.68,187.35,187.28,2.81]
[1760829424535,8.78800978,187.37,187.28,2.81]
[1760829424536,4.8022,187.37,187.29,2.81]
[1760829425139,2.68,187.36,187.29,2.81]
[1760829429232,4.8027,187.35,187.26,2.72]
[1760829429432,2.85,187.34,187.26,2.72]
[1760829432448,2.85,187.34,187.27,2.72]
[1760829442348,6.81374279,187.34,187.27,2.72]
[1760829444643,10.80032586,187.34,187.27,2.72]
[1760829444846,6.81374279,187.34,187.27,2.72]
[1760829445550,3.96374279,187.33,187.26,4.8046]
[1760829445758,7.95032586,187.34,187.28,2.61]
[1760829446050,2.75,187.32,187.28,2.61]
[1760829446245,2.75,187.31,187.28,2.61]
[1760829446450,2.75,187.33,187.28,2.61]
[1760829446652,3.96374279,187.33,187.28,2.61]
[1760829446843,2.75,187.31,187.28,2.61]
[1760829447351,2.75,187.31,187.26,7.4146]
[1760829447542,2.75,187.31,187.25,60.77579937]
[1760829448045,3.96374279,187.32,187.25,60.77579937]
[1760829448240,2.75,187.31,187.25,60.77579937]
[1760829450255,2.75,187.31,187.25,63.38579937]
[1760829450854,2.75,187.31,187.26,2.61]
[1760829451649,2.75,187.31,187.25,65.58069937]
[1760829452050,2.75,187.31,187.26,2.61]
[1760829452355,2.75,187.31,187.25,65.58069937]
[1760829452652,2.75,187.31,187.26,2.61]
[1760829453251,6.71374279,187.33,187.26,2.61]
[1760829455056,3.96374279,187.32,187.26,2.61]
[1760829455255,2.75,187.32,187.26,2.61]
[1760829455451,6.71374279,187.32,187.26,2.61]
[1760829455650,3.96374279,187.31,187.25,60.77579937]
[1760829455846,3.2188655,187.34,187.25,60.77579937]
[1760829455847,2.75,187.29,187.25,60.77579937]
[1760829456047,3.96374279,187.3,187.25,60.77579937]
[1760829456048,2.75,187.3,187.25,60.77579937]
[1760829456246,2.75,187.29,187.25,63.38579937]
[1760829456451,3.96374279,187.31,187.25,63.38579937]
[1760829456756,3.96374279,187.3,187.25,63.38579937]
[1760829456957,3.99725893,187.32,187.25,63.38579937]
[1760829456958,3.96374279,187.31,187.25,60.77579937]
[1760829457153,2.75,187.3,187.26,2.61]
[1760829457856,2.75,187.29,187.26,2.61]
[1760829459555,2.75,187.3,187.23,2.61]
[1760829459755,2.75,187.3,187.17,3.2188655]
[1760829459756,3.96374279,187.29,187.18,2.61]
[1760829459957,3.96374279,187.28,187.2,21.4]
[1760829460157,2.75,187.28,187.2,21.4]
[1760829460359,3.96374279,187.28,187.2,24.01]
[1760829460560,2.75,187.28,187.2,24.01]
[1760829460760,2.75,187.27,187.2,2.61]
[1760829460961,3.96374279,187.26,187.2,2.61]
[1760829461160,2.75,187.26,187.2,2.61]
[1760829461362,2.75,187.24,187.16,2.61]
[1760829462762,7.5555,187.24,187.16,2.61]
[1760829463264,6.71374279,187.24,187.16,2.61]
[1760829463562,2.75,187.21,187.16,2.61]
[1760829463759,2.75,187.21,187.12,2.61]
[1760829463956,4.8065,187.2,187.12,2.61]
[1760829464155,2.75,187.19,187.12,2.61]
[1760829477668,7.6158,187.22,187.12,2.61]
[1760829478973,7.6158,187.22,187.13,4.8079]
[1760829479171,7.6158,187.22,187.14,2.58]
[1760829481073,2.81,187.22,187.15,2.58]
[1760829491689,7.5451,187.25,187.05,11.9]
[1760829491896,7.5451,187.25,187.11,2.73]
[1760829491897,5.9588655,187.25,187.11,2.73]
[1760829492593,2.74,187.17,187.06,2.73]
[1760829493393,2.74,187.17,187.11,2.73]
[1760829493997,3.2188655,187.18,187.11,2.73]
[1760829494591,5.9588655,187.18,187.11,2.73]
[1760829494888,2.74,187.17,187.11,2.73]
[1760829496086,2.74,187.17,187.04,0.92995911]
[1760829496292,2.74,187.14,187.05,2.73]
[1760829497792,2.74,187.14,187.07,4.8094]
[1760829497998,3.2188655,187.16,187.02,2.84]
[1760829498190,2.74,187.15,187.02,2.84]
[1760829498594,2.74,187.15,187.06,4.8097]
[1760829498794,2.74,187.15,187.07,2.84]
[1760829501099,2.74,187.15,187.09,2.84]
[1760829519321,2.74,187.15,187.06,7.6498]
[1760829519621,2.74,187.15,187.07,2.84]
[1760829520122,7.5477,187.15,187.07,2.84]
[1760829524921,2.74,187.14,187.07,7.6495]
[1760829525421,3.2188655,187.13,187.04,7.6502]
[1760829525621,2.74,187.12,187.02,2.84]
[1760829527127,2.74,187.12,187.06,2.86]
[1760829529421,2.74,187.12,187.06,7.6697]
[1760829529624,2.74,187.15,187.06,2.86]
[1760829530425,6.72784952,187.15,187.1,2.86]
[1760829530728,2.74,187.14,187.11,2.86]
[1760829531527,7.21584281,187.18,187.12,2.86]
[1760829531719,7.19177717,187.18,187.12,2.86]
[1760829532125,7.19177717,187.18,187.1,4.8087]
[1760829532430,2.74,187.17,187.1,4.8087]
[1760829532624,6.71291167,187.17,187.1,4.8087]
[1760829532825,3.97291167,187.17,187.1,4.8087]
[1760829533025,2.74,187.15,187.1,4.8087]
[1760829533228,2.74,187.16,187.1,4.8087]
[1760829534534,2.74,187.15,187.1,4.8087]
[1760829534736,3.97291167,187.17,187.1,4.8087]
[1760829534927,2.74,187.15,187.1,4.8087]
[1760829535128,3.97291167,187.17,187.1,4.8087]
[1760829535427,2.74,187.15,187.1,4.8087]
[1760829535628,2.74,187.16,187.1,4.8087]
[1760829535829,6.71291167,187.16,187.1,4.8087]
[1760829536132,2.74,187.16,187.1,4.8087]
[1760829536331,6.71291167,187.16,187.1,4.8087]
[1760829536736,2.74,187.16,187.1,4.8087]
[1760829536927,6.71291167,187.16,187.1,4.8087]
[1760829537126,2.74,187.16,187.1,4.8087]
[1760829537333,2.74,187.14,187.11,2.86]
[1760829537530,2.74,187.15,187.11,2.86]
[1760829537729,2.74,187.13,187.11,2.86]
[1760829539427,3.97291167,187.14,187.09,2.86]
[1760829539623,3.97291167,187.15,187.08,4.8093]
[1760829539827,6.71291167,187.14,187.1,2.86]
[1760829540029,2.74,187.14,187.08,4.8093]
[1760829540228,6.71291167,187.14,187.09,2.86]
[1760829540427,2.74,187.13,187.08,4.8093]
[1760829540722,2.74,187.13,187.09,2.86]
[1760829541127,2.74,187.13,187.08,4.8093]
[1760829541328,2.74,187.13,187.1,2.86]
[1760829541523,2.74,187.13,187.09,2.86]
[1760829542128,2.74,187.13,187.1,2.86]
[1760829542532,2.74,187.13,187.09,2.86]
[1760829542733,2.74,187.13,187.08,4.8093]
[1760829543031,2.74,187.13,187.1,2.86]
[1760829543433,2.74,187.12,187.1,2.86]
[1760829544127,3.97291167,187.14,187.09,2.86]
[1760829544332,2.74,187.14,187.09,2.86]
[1760829544532,2.74,187.13,187.08,4.8093]
[1760829544734,2.74,187.13,187.09,2.86]
[1760829545432,2.74,187.13,187.08,4.8093]
[1760829545636,2.74,187.13,187.09,2.86]
[1760829546135,3.97291167,187.14,187.09,2.86]
[1760829546336,8.0266655,187.15,187.1,2.86]
[1760829546536,2.74,187.12,187.1,2.86]
[1760829546937,2.74,187.12,187.08,4.8093]
[1760829547330,2.74,187.12,187.09,2.6]
[1760829547533,2.74,187.12,187.08,4.8093]
[1760829547733,2.74,187.12,187.09,2.6]
[1760829547928,3.97291167,187.14,187.09,2.6]
[1760829548231,2.81,187.13,187.09,2.6]
[1760829548624,7.97420739,187.14,187.09,2.6]
[1760829548830,6.78291167,187.14,187.09,2.6]
[1760829549434,7.97420739,187.14,187.1,2.6]
[1760829549636,3.97291167,187.14,187.1,2.6]
[1760829550035,2.81,187.12,187.1,2.6]
[1760829551033,3.97291167,187.14,187.05,2.6]
[1760829551240,3.97291167,187.16,187.07,2.6]
[1760829551636,6.81200361,187.17,187.07,2.6]
[1760829551841,6.81200361,187.17,187.1,2.6]
[1760829552138,6.81200361,187.17,187.11,4.8086]
[1760829552336,2.81,187.16,187.11,4.8086]
[1760829552540,4.00200361,187.17,187.12,2.6]
[1760829552541,2.81,187.15,187.12,2.6]
[1760829553237,4.00200361,187.17,187.09,11.47727149]
[1760829553436,3.2188655,187.15,187.09,4.809]
[1760829553640,2.81,187.14,187.09,7.409]
[1760829554136,3.2188655,187.15,187.09,7.409]
[1760829554340,2.81,187.14,187.09,7.409]
[1760829554542,3.2188655,187.15,187.09,4.809]
[1760829554844,2.81,187.14,187.09,4.809]
[1760829555543,3.2188655,187.15,187.09,4.809]
[1760829555745,7.22086911,187.15,187.07,14.07777149]
[1760829555940,2.81,187.14,187.07,7.4095]
[1760829556134,7.22086911,187.15,187.07,7.4095]
[1760829556339,2.62,187.14,187.07,7.4095]
[1760829556746,7.22086911,187.15,187.07,7.4095]
[1760829556947,2.62,187.14,187.07,7.4095]
[1760829558243,2.62,187.14,187.06,6.66827149]
[1760829558448,4.00200361,187.15,187.08,2.63]
[1760829558649,4.00200361,187.16,187.09,2.63]
[1760829560048,6.62200361,187.17,187.1,4.8087]
[1760829561843,6.62200361,187.17,187.11,2.63]
[1760829562544,6.62200361,187.17,187.11,7.4384]
[1760829562752,6.62200361,187.17,187.04,44.1]
[1760829562753,2.62,187.17,187.09,6.66827149]
[1760829563048,2.62,187.17,187.1,2.63]
[1760829563647,4.00200361,187.18,187.12,4.8082]
[1760829563849,4.00200361,187.19,187.13,2.63]
[1760829565039,4.00200361,187.19,187.13,7.4379]
[1760829565249,2.62,187.19,187.13,7.4379]
[1760829565946,2.62,187.19,187.13,2.63]
[1760829567646,6.62200361,187.19,187.13,2.63]
[1760829568246,6.62200361,187.19,187.11,4.8085]
[1760829568247,3.2188655,187.17,187.11,4.8085]
[1760829568448,2.62,187.16,187.11,4.8085]
[1760829568645,3.2188655,187.17,187.11,4.8085]
[1760829568843,2.62,187.16,187.09,14.10727149]
[1760829569145,2.62,187.16,187.09,7.439]
[1760829569342,2.62,187.15,187.09,7.439]
[1760829570041,8.0260655,187.17,187.09,7.439]
[1760829570246,2.62,187.16,187.09,7.439]
[1760829570442,12.02806911,187.17,187.09,7.439]
[1760829570751,2.62,187.16,187.09,2.63]
[1760829571149,6.62200361,187.16,187.09,2.63]
[1760829571453,6.61025191,187.16,187.09,2.63]
[1760829571751,6.61025191,187.16,187.07,4.8095]
[1760829571752,2.62,187.13,187.07,4.8095]
[1760829574553,2.62,187.13,187.08,2.63]
[1760829574754,3.2188655,187.14,187.07,4.8095]
[1760829574943,2.62,187.13,187.08,2.63]
[1760829575147,8.0268655,187.14,187.07,4.8095]
[1760829575346,2.62,187.13,187.07,7.4395]
[1760829591658,2.62,187.13,187.08,2.85]
[1760829591858,8.0268655,187.14,187.07,4.8095]
[1760829592066,2.58,187.13,187.08,2.85]
[1760829592361,8.0268655,187.14,187.08,2.85]
[1760829592564,2.58,187.13,187.08,2.85]
[1760829592755,8.0268655,187.14,187.07,4.8095]
[1760829592960,2.58,187.13,187.08,2.85]
[1760829594563,8.0268655,187.14,187.07,4.8095]
[1760829594765,2.58,187.13,187.08,2.85]
[1760829596264,2.58,187.13,187.07,4.8095]
[1760829596465,8.0268655,187.14,187.07,4.8095]
[1760829596665,2.58,187.13,187.08,2.85]
[1760829600668,2.58,187.13,187.07,4.8095]
[1760829600871,2.58,187.13,187.08,2.85]
[1760829602369,2.58,187.13,187.09,2.85]
[1760829602570,2.58,187.15,187.09,2.85]
[1760829602771,3.97834181,187.16,187.09,2.85]
[1760829602965,2.58,187.16,187.09,2.85]
[1760829603370,6.55834181,187.16,187.09,2.85]
[1760829603574,2.58,187.15,187.07,2.85]
[1760829603774,6.55834181,187.15,187.07,2.85]
[1760829604073,2.58,187.15,187.07,2.85]
[1760829604273,6.55834181,187.15,187.07,2.85]
[1760829604474,2.58,187.13,187.07,2.85]
[1760829606368,6.55834181,187.13,187.07,2.85]
[1760829606864,2.58,187.13,187.07,2.85]
[1760829607670,11.36654181,187.13,187.07,2.85]
[1760829607970,7.3882,187.13,187.07,2.85]
[1760829609675,3.2188655,187.11,187.04,2.74]
[1760829609879,2.63,187.1,187.04,2.74]
[1760829611083,7.439,187.1,187.04,2.74]
[1760829611378,7.439,187.1,187.02,11.47907149]
[1760829611379,2.63,187.09,187.02,2.74]
[1760829612175,3.97834181,187.1,187.0,75.84499892]
[1760829612176,4.8096,187.08,187.0,75.84499892]
[1760829612378,2.63,187.07,187.01,2.74]
[1760829614485,4.8103,187.05,187.01,2.74]
[1760829614686,2.63,187.04,187.01,2.74]
[1760829614884,4.8103,187.05,187.01,2.74]
[1760829616280,2.63,187.04,187.01,2.74]
[1760829616484,2.63,187.04,187.0,64.36542743]
[1760829616684,2.63,187.04,187.01,2.64]
[1760829616890,2.74,187.07,186.97,2.64]
[1760829617183,2.74,187.04,186.97,2.64]
[1760829618985,7.5506,187.04,186.97,2.64]
[1760829619489,2.74,187.02,186.97,2.64]
[1760829620382,2.74,187.02,186.94,4.8129]
[1760829620383,2.74,187.02,186.95,2.64]
[1760829625086,2.74,187.09,186.96,2.64]
[1760829625390,2.74,187.11,186.99,2.64]
[1760829625879,6.68792343,187.11,186.99,2.64]
[1760829626083,4.8098,187.07,186.99,2.64]
[1760829626281,2.74,187.06,186.99,2.64]
[1760829627992,7.5501,187.06,186.99,2.64]
[1760829630287,2.74,187.06,187.0,3.2188655]
[1760829630488,4.8094,187.08,187.01,2.64]
[1760829631394,2.74,187.09,187.01,2.64]
[1760829635895,2.74,187.09,187.02,2.64]
[1760829636093,2.74,187.09,187.03,3.2188655]
[1760829636792,2.74,187.09,187.04,2.64]
[1760829637498,2.74,187.08,187.03,3.2188655]
[1760829637698,2.74,187.08,187.04,2.64]
[1760829639101,2.74,187.08,187.03,3.2188655]
[1760829639304,2.74,187.08,187.04,2.64]
[1760829639896,2.74,187.08,187.03,3.2188655]
[1760829640091,2.74,187.08,187.04,2.64]
[1760829640297,2.74,187.11,187.04,2.64]
[1760829643202,3.2188655,187.12,187.01,10.6700655]
[1760829643400,2.74,187.11,187.01,7.4512]
[1760829643802,3.2188655,187.12,187.01,7.4512]
[1760829644404,2.74,187.11,187.01,7.4512]
[1760829645002,2.74,187.08,187.01,7.4512]
[1760829646613,2.7,187.07,187.01,7.4512]
[1760829648007,2.7,187.07,187.01,2.64]
[1760829649614,7.5093,187.09,187.01,2.64]
[1760829651005,7.5093,187.09,187.02,2.78]
[1760829661515,2.7,187.07,186.99,14.69873699]
[1760829661714,2.7,187.1,186.99,10.8104655]
[1760829661920,2.7,187.08,186.99,7.5916]
[1760829662714,3.2188655,187.09,186.99,7.5916]
[1760829663121,2.7,187.05,186.99,7.5916]
[1760829665322,2.7,187.05,186.99,2.78]
[1760829670836,7.5103,187.05,186.99,2.78]
[1760829671128,4.8103,187.05,186.97,6.66827149]
[1760829671331,2.69,187.04,186.97,6.66827149]
[1760829671530,2.69,187.04,186.96,9.29827149]
[1760829671730,2.69,187.03,186.96,9.29827149]
[1760829673432,2.69,187.05,186.96,2.63]
[1760829673626,7.19683454,187.06,186.95,14.69973699]
[1760829673627,4.8111,187.02,186.95,14.69973699]
[1760829674126,2.69,187.01,186.96,2.63]
[1760829674326,2.69,187.01,186.95,9.29827149]
[1760829675123,2.69,187.01,186.95,2.63]
[1760829679235,2.72,187.04,186.95,3.2188655]
[1760829679537,2.72,187.04,186.96,2.75]
[1760829681137,2.72,187.04,186.97,2.75]
[1760829683537,7.5305,187.04,186.97,2.75]
[1760829686343,7.5305,187.04,186.96,4.8123]
[1760829686344,3.9858816,187.07,186.94,14.23117149]
[1760829686643,3.2188655,187.05,186.94,14.23117149]
[1760829686833,2.72,187.04,186.94,7.5629]
[1760829687237,3.2188655,187.05,186.94,7.5629]
[1760829687439,2.72,187.04,186.94,7.5629]
[1760829687639,3.9858816,187.07,186.94,7.5629]
[1760829687844,2.72,187.04,186.94,7.5629]
[1760829688141,2.72,187.01,186.94,7.5629]
[1760829690242,7.5313,187.01,186.94,2.75]
[1760829692937,4.8116,187.0,186.94,2.75]
[1760829693144,4.8116,187.0,186.92,11.48167149]
[1760829693344,2.72,186.99,186.93,2.75]
[1760829695340,7.5318,186.99,186.93,2.75]
[1760829701138,2.72,186.99,186.93,2.75]
[1760829701347,3.9858816,187.04,186.95,3.2188655]
[1760829701348,6.7058816,187.04,186.95,3.2188655]
[1760829701541,2.72,187.04,186.96,2.75]
[1760829701851,4.8101,187.06,186.96,7.5623]
[1760829702050,2.72,187.05,186.96,7.5623]
[1760829702352,4.8101,187.06,186.96,7.5623]
[1760829702947,2.72,187.03,186.96,7.5623]
[1760829703142,2.72,187.04,186.96,2.75]
[1760829703450,3.2188655,187.02,186.94,4.8129]
[1760829703848,2.72,187.01,186.94,4.8129]
[1760829704048,3.2188655,187.02,186.94,4.8129]
[1760829704249,2.72,187.01,186.94,4.8129]
[1760829705649,2.72,187.01,186.93,2.75]
[1760829708254,6.69373529,187.01,186.93,2.75]
[1760829708553,2.72,187.01,186.93,2.75]
[1760829709557,4.8116,187.0,186.93,2.75]
[1760829709754,3.2188655,186.99,186.9,9.52827149]
[1760829710152,2.65,186.98,186.9,9.52827149]
[1760829710354,3.2188655,186.99,186.9,9.52827149]
[1760829710651,3.2188655,186.99,186.9,2.86]
[1760829710652,2.65,186.98,186.9,2.86]
[1760829711163,3.2188655,186.99,186.86,71.39193019]
[1760829711164,2.65,186.95,186.89,2.86]
[1760829711356,2.65,186.98,186.89,2.86]
[1760829712758,2.65,186.98,186.9,4.8138]
[1760829712961,2.65,186.98,186.91,2.86]
[1760829713759,7.4621,186.98,186.91,2.86]
[1760829720868,2.65,186.98,186.91,2.86]
[1760829725166,7.4621,186.98,186.91,2.86]
[1760829728864,2.65,186.98,186.92,2.83]
[1760829733964,2.78,187.0,186.94,2.83]
[1760829737368,2.78,187.0,186.95,2.6]
[1760829738167,2.78,187.0,186.94,4.8128]
[1760829738570,2.78,187.0,186.95,2.6]
[1760829738763,2.78,187.0,186.94,4.8128]
[1760829739666,2.78,187.0,186.95,2.6]
[1760829740062,2.78,187.0,186.94,4.8128]
[1760829740267,2.78,187.0,186.95,2.6]
[1760829740673,2.82,187.01,186.95,2.6]
[1760829745975,2.82,187.01,186.92,9.98243519]
[1760829746175,2.82,187.03,186.94,2.6]
[1760829746376,2.82,187.03,186.94,9.98243519]
[1760829746578,2.82,187.03,186.95,2.6]
[1760829747972,2.82,187.04,186.98,4.8118]
[1760829748178,2.82,187.04,186.98,7.4118]
[1760829748474,88.30806788,187.05,186.98,7.4118]
[1760829748879,2.82,187.04,186.98,7.4118]
[1760829749273,88.30806788,187.05,186.98,7.4118]
[1760829749477,2.82,187.04,186.98,7.4118]
[1760829749877,88.30806788,187.05,186.98,7.4118]
[1760829750079,7.6305,187.04,186.98,7.4118]
[1760829750378,4.8105,187.04,186.98,7.4118]
[1760829750578,2.82,187.03,186.98,7.4118]
[1760829750779,4.8105,187.04,186.98,4.8118]
[1760829751073,2.82,187.03,186.99,2.6]
[1760829751380,2.82,187.02,186.99,2.6]
[1760829751780,2.82,187.03,186.99,2.6]
[1760829752280,4.8105,187.04,186.99,2.6]
[1760829752578,2.82,187.02,186.99,2.6]
[1760829752780,2.82,187.03,186.99,2.6]
[1760829752978,2.82,187.02,186.99,2.6]
[1760829753476,2.82,187.03,186.99,2.6]
[1760829753778,4.8105,187.04,186.99,2.6]
[1760829753979,2.82,187.02,186.99,2.6]
[1760829754372,2.82,187.03,186.96,7.4124]
[1760829754578,2.82,187.02,186.96,7.4124]
[1760829756681,2.82,187.03,186.97,2.6]
[1760829758180,2.82,187.03,186.97,7.412]
[1760829758380,2.82,187.03,186.98,2.6]
[1760829758773,93.11836788,187.05,186.97,4.812]
[1760829758980,2.82,187.04,186.98,2.6]
[1760829763691,46.92,187.04,186.98,2.6]
[1760829763996,2.82,187.04,186.98,2.6]
[1760829764190,46.92,187.04,186.98,2.6]
[1760829764493,2.82,187.04,186.98,2.6]
[1760829764689,46.92,187.04,186.98,2.6]
[1760829764891,2.82,187.04,186.98,2.6]
[1760829765793,46.92,187.04,186.98,2.6]
[1760829766590,2.82,187.04,186.98,2.6]
[1760829767191,46.92,187.04,186.98,2.6]
[1760829767592,2.82,187.04,186.98,2.6]
[1760829767894,93.11836788,187.05,186.97,4.812]
[1760829768093,2.69,187.03,186.98,2.59]
[1760829768295,93.11836788,187.05,186.97,4.812]
[1760829768596,46.79,187.04,186.98,2.59]
[1760829768998,2.69,187.04,186.98,2.59]
[1760829769291,44.1,187.03,186.97,4.812]
[1760829769492,2.69,187.04,186.98,2.59]
[1760829770897,2.69,187.04,186.97,4.812]
[1760829771193,2.69,187.04,186.98,2.59]
[1760829771397,2.69,187.02,186.97,4.812]
[1760829771595,2.69,187.04,186.98,2.59]
[1760829772096,2.69,187.02,186.97,4.812]
[1760829772296,93.11836788,187.05,186.98,2.59]
[1760829772497,46.77,187.04,186.98,2.59]
[1760829772694,44.08,187.03,186.98,2.59]
[1760829772997,2.69,187.04,186.98,2.59]
[1760829773195,44.08,187.03,186.98,2.59]
[1760829773395,2.69,187.04,186.97,4.812]
[1760829773589,2.69,187.02,186.97,4.812]
[1760829773788,44.08,187.03,186.97,4.812]
[1760829773987,2.69,187.02,186.97,4.812]
[1760829774193,44.08,187.03,186.97,4.812]
[1760829774498,93.11836788,187.05,186.97,7.402]
[1760829774694,2.69,187.04,186.97,7.402]
[1760829774892,2.69,187.03,186.97,7.402]
[1760829775093,46.77,187.03,186.97,7.402]
[1760829775288,2.69,187.03,186.97,7.402]
[1760829775499,46.77,187.03,186.97,7.402]
[1760829775693,2.69,187.03,186.97,7.402]
[1760829775900,46.77,187.03,186.97,7.402]
[1760829776096,2.69,187.01,186.98,2.59]
[1760829777501,2.69,186.98,186.95,7.4027]
[1760829777799,2.69,186.98,186.92,2.59]
[1760829778605,2.69,186.98,186.95,2.59]
[1760829778997,3.2188655,186.99,186.95,2.59]
[1760829779197,2.69,186.98,186.95,2.59]
[1760829779401,3.2188655,186.99,186.95,2.59]
[1760829779596,2.69,186.98,186.95,2.59]
[1760829779903,3.2188655,186.99,186.95,2.59]
[1760829780299,2.69,186.98,186.95,2.59]